bitfinex/quotes_SOLUSD_20250609
["timestamp","ask_amount","ask_price","bid_price","bid_amount"]
[1749444295488,4.92349982,151.38,151.36,8.04694178]
[1749444295695,6.6054561,151.39,151.36,8.04694178]
[1749444295976,4.92391804,151.38,151.36,8.04694178]
[1749444296188,4.92391804,151.37,151.36,8.04694178]
[1749444296984,4.92391804,151.37,151.33,1.5339]
[1749444296985,4.92391804,151.37,151.35,8.04694178]
[1749444297306,6.6054561,151.39,151.35,8.04694178]
[1749444297499,4.92419202,151.38,151.35,8.04694178]
[1749444297797,4.92419202,151.37,151.35,8.04694178]
[1749444297982,6.6054561,151.39,151.35,8.04694178]
[1749444298183,4.92464091,151.38,151.35,8.04694178]
[1749444298408,4.92464091,151.37,151.35,8.04694178]
[1749444298610,6.6054561,151.39,151.35,8.04694178]
[1749444298793,4.92613962,151.38,151.35,8.04694178]
[1749444298991,4.92613962,151.37,151.35,8.04694178]
[1749444299187,6.6054561,151.39,151.35,8.04694178]
[1749444299394,11.53233697,151.38,151.35,8.04694178]
[1749444299592,4.92630214,151.37,151.35,8.04694178]
[1749444299895,6.60603483,151.38,151.35,8.04694178]
[1749444300101,4.9263808,151.37,151.35,8.04694178]
[1749444300404,6.6054561,151.39,151.35,8.04694178]
[1749444300705,4.92704847,151.38,151.34,8.04694178]
[1749444300910,4.92704847,151.37,151.34,8.04694178]
[1749444301081,4.92704847,151.36,151.31,0.14216157]
[1749444301287,4.92704847,151.36,151.32,8.04694178]
[1749444301288,4.92704847,151.35,151.32,8.04694178]
[1749444301483,8.04694178,151.36,151.29,1.5155]
[1749444301714,8.04694178,151.34,151.3,8.04694178]
[1749444301891,4.9255274,151.33,151.3,8.04694178]
[1749444302206,12.96983771,151.33,151.29,8.04694178]
[1749444302382,8.04694178,151.33,151.29,8.04694178]
[1749444302587,8.04694178,151.33,151.27,17.07260304]
[1749444302588,6.60813899,151.33,151.3,8.04694178]
[1749444302885,14.65470707,151.34,151.3,8.04694178]
[1749444303104,4.92249271,151.33,151.31,8.04694178]
[1749444303287,4.92282213,151.34,151.31,8.04694178]
[1749444303487,6.60736087,151.35,151.31,8.04694178]
[1749444303814,4.92125756,151.34,151.31,8.04694178]
[1749444304104,6.60736087,151.35,151.31,8.04694178]
[1749444304308,50.5,151.37,151.33,8.04694178]
[1749444304611,4.92199811,151.36,151.34,8.04694178]
[1749444304819,57.10633747,151.37,151.34,8.04694178]
[1749444305112,4.92297096,151.36,151.33,8.04694178]
[1749444305310,57.10633747,151.37,151.33,8.04694178]
[1749444305484,4.92294466,151.36,151.33,8.04694178]
[1749444305684,4.92350924,151.36,151.33,14.65491107]
[1749444306017,4.92356852,151.36,151.33,8.04694178]
[1749444307510,4.92356852,151.36,151.31,6.75111008]
[1749444307683,65.15328717,151.37,151.33,8.04694178]
[1749444308013,4.92317175,151.36,151.33,8.04694178]
[1749444308203,4.92304043,151.36,151.33,8.04694178]
[1749444308380,65.15328717,151.37,151.33,8.04694178]
[1749444308585,4.92287728,151.36,151.33,8.04694178]
[1749444313514,4.92287728,151.36,151.33,14.65499974]
[1749444313826,50.5,151.37,151.34,8.04694178]
[1749444314393,55.42335847,151.37,151.35,8.04694178]
[1749444314591,15.24335847,151.37,151.35,8.04694178]
[1749444314795,10.32,151.37,151.35,8.04694178]
[1749444316721,51.25524023,151.39,151.35,8.04694178]
[1749444317033,4.92489163,151.38,151.35,8.04694178]
[1749444317329,51.25524023,151.39,151.35,8.04694178]
[1749444317622,4.92522977,151.38,151.35,8.04694178]
[1749444317937,4.92522977,151.38,151.37,8.04694178]
[1749444317938,4.92599909,151.38,151.37,8.04694178]
[1749444318240,4.92631876,151.39,151.37,8.04694178]
[1749444318525,4.92631876,151.39,151.38,8.04694178]
[1749444318902,10.32,151.4,151.38,8.04694178]
[1749444320003,10.32,151.4,151.39,8.04694178]
[1749444322009,11.52949994,151.42,151.39,8.04694178]
[1749444322210,11.52950408,151.42,151.39,8.04694178]
[1749444325844,6.60430018,151.42,151.39,8.04694178]
[1749444326138,11.52950408,151.42,151.39,8.04694178]
[1749444328523,6.60430018,151.42,151.39,8.04694178]
[1749444331408,11.52950408,151.42,151.39,8.04694178]
[1749444331614,6.60430018,151.42,151.39,8.04694178]
[1749444344854,6.60430018,151.42,151.4,8.04694178]
[1749444347237,37.51621499,151.43,151.4,8.04694178]
[1749444347566,6.60387565,151.43,151.41,8.04694178]
[1749444347941,6.60387565,151.43,151.4,8.04694178]
[1749444351551,11.51763244,151.43,151.4,8.04694178]
[1749444352151,6.60387565,151.43,151.4,8.04694178]
[1749444352359,11.51763244,151.43,151.4,8.04694178]
[1749444352572,6.60387565,151.43,151.4,8.04694178]
[1749444352759,11.51763244,151.43,151.4,8.04694178]
[1749444355370,4.91375679,151.42,151.4,8.04694178]
[1749444355674,11.51763244,151.43,151.4,8.04694178]
[1749444356354,6.60387565,151.43,151.4,8.04694178]
[1749444357182,4.92327386,151.42,151.37,6.60615441]
[1749444357380,6.60387565,151.43,151.4,8.04694178]
[1749444357588,4.92479946,151.42,151.4,8.04694178]
[1749444357777,6.60387565,151.43,151.4,8.04694178]
[1749444358072,4.92376063,151.42,151.4,8.04694178]
[1749444358281,4.92474972,151.41,151.38,8.04694178]
[1749444358452,8.04694178,151.42,151.38,8.04694178]
[1749444358658,4.92456171,151.41,151.38,8.04694178]
[1749444358870,8.04694178,151.42,151.38,8.04694178]
[1749444359185,11.52921293,151.41,151.38,8.04694178]
[1749444359387,4.92423643,151.4,151.38,8.04694178]
[1749444359683,6.6049765,151.41,151.38,8.04694178]
[1749444359868,4.9264117,151.4,151.38,8.04694178]
[1749444360054,6.6049765,151.41,151.38,8.04694178]
[1749444360254,4.92683317,151.4,151.38,8.04694178]
[1749444360476,6.6049765,151.41,151.38,8.04694178]
[1749444360780,4.9282012,151.4,151.38,8.04694178]
[1749444360977,6.6049765,151.41,151.38,8.04694178]
[1749444361273,11.53328725,151.4,151.38,8.04694178]
[1749444361463,6.60508605,151.4,151.38,8.04694178]
[1749444362162,6.60458358,151.41,151.38,8.04694178]
[1749444362489,4.93212896,151.4,151.38,8.04694178]
[1749444362777,6.60458358,151.41,151.38,8.04694178]
[1749444362979,4.93211837,151.4,151.35,1.502]
[1749444363188,4.93211837,151.39,151.35,9.54894178]
[1749444363396,8.04694178,151.37,151.31,1.5587]
[1749444363679,12.97906015,151.36,151.32,8.04694178]
[1749444363854,4.93211837,151.35,151.33,8.04694178]
[1749444364058,8.04694178,151.37,151.33,8.04694178]
[1749444364258,8.04694178,151.37,151.31,1.5587]
[1749444364259,6.60720185,151.35,151.31,1.5587]
[1749444364486,6.60720185,151.35,151.32,8.04694178]
[1749444364674,6.60720185,151.35,151.33,8.04694178]
[1749444364980,8.04694178,151.38,151.34,8.04694178]
[1749444365163,4.92516891,151.37,151.34,8.04694178]
[1749444365371,4.92516891,151.36,151.34,8.04694178]
[1749444365572,8.04694178,151.38,151.34,8.04694178]
[1749444365776,11.52918415,151.37,151.34,8.04694178]
[1749444365992,4.9227414,151.36,151.34,8.04694178]
[1749444366163,6.60644275,151.37,151.31,8.16759319]
[1749444366363,4.92260308,151.36,151.34,8.04694178]
[1749444366677,4.92260308,151.37,151.34,8.04694178]
[1749444366878,6.60601192,151.38,151.34,8.04694178]
[1749444367085,4.92101284,151.37,151.34,8.04694178]
[1749444367286,6.60601192,151.38,151.34,8.04694178]
[1749444367485,4.92104662,151.37,151.34,8.04694178]
[1749444367689,6.60601192,151.38,151.34,8.04694178]
[1749444367864,4.919863,151.37,151.34,8.04694178]
[1749444368058,14.6529537,151.38,151.34,8.04694178]
[1749444368259,4.919863,151.37,151.34,8.04694178]
[1749444368470,4.91867455,151.37,151.34,8.04694178]
[1749444368893,4.91867455,151.37,151.33,8.04694178]
[1749444369260,12.96561633,151.37,151.33,8.04694178]
[1749444369485,11.52564919,151.36,151.33,8.04694178]
[1749444369690,19.57259097,151.36,151.32,8.04694178]
[1749444369887,14.65391642,151.36,151.29,6.60973802]
[1749444370069,8.04694178,151.34,151.3,8.04694178]
[1749444370261,12.96561633,151.34,151.3,8.04694178]
[1749444370468,8.04694178,151.33,151.29,8.04694178]
[1749444370877,26.69659064,151.34,151.3,8.04694178]
[1749444371280,36.14672064,151.34,151.3,12.58285973]
[1749444371610,37.84029231,151.34,151.3,12.58285973]
[1749444372274,31.23250859,151.34,151.3,12.58285973]
[1749444373065,52.74285973,151.35,151.31,12.58285973]
[1749444373396,40.16,151.35,151.32,12.58285973]
[1749444373899,4.90975168,151.36,151.32,19.19123327]
[1749444374276,18.64964886,151.36,151.32,19.19123327]
[1749444377895,156.70432314,151.39,151.35,12.58285973]
[1749444377896,63.06285973,151.39,151.35,12.58285973]
[1749444378081,4.90787485,151.38,151.35,12.58285973]
[1749444379875,27.81073458,151.39,151.35,12.58285973]
[1749444380693,27.81073458,151.39,151.35,19.18992906]
[1749444383101,15.22787485,151.39,151.35,19.18992906]
[1749444383298,27.81073458,151.39,151.35,19.18992906]
[1749444386885,10.32,151.39,151.36,12.58285973]
[1749444387202,18.64964886,151.42,151.38,12.58285973]
[1749444387499,18.64964886,151.42,151.4,12.58285973]
[1749444387705,18.64964886,151.42,151.36,12.58285973]
[1749444387882,25.25393723,151.42,151.35,23.12507395]
[1749444388202,37.83679696,151.42,151.38,12.58285973]
[1749444389905,42.74876588,151.42,151.38,12.58285973]
[1749444390593,18.64964886,151.41,151.38,12.58285973]
[1749444390803,12.58285973,151.4,151.36,12.58285973]
[1749444391373,8.04682204,151.4,151.36,8.04682204]
[1749444392076,14.65214899,151.4,151.36,8.04682204]
[1749444393202,19.1784613,151.4,151.34,6.60733483]
[1749444393409,24.09043022,151.4,151.36,12.57313435]
[1749444395906,11.51729587,151.4,151.37,12.57313435]
[1749444400215,4.91196892,151.39,151.37,12.57313435]
[1749444400389,11.51743601,151.39,151.36,12.57313435]
[1749444400721,6.60546709,151.39,151.36,12.57313435]
[1749444401012,4.91196892,151.38,151.36,12.57313435]
[1749444401214,6.60546709,151.39,151.36,12.57313435]
[1749444401523,4.91196892,151.38,151.36,12.57313435]
[1749444402019,6.60546709,151.39,151.36,12.57313435]
[1749444402227,11.51743601,151.39,151.36,12.57313435]
[1749444402390,6.60546709,151.39,151.36,12.57313435]
[1749444402585,4.92372106,151.38,151.35,12.57313435]
[1749444402791,4.92330667,151.37,151.33,12.57313435]
[1749444403011,12.57313435,151.38,151.33,12.57313435]
[1749444403222,4.92310392,151.37,151.33,12.57313435]
[1749444403392,4.92310392,151.36,151.33,12.57313435]
[1749444403596,4.92393794,151.36,151.33,12.57313435]
[1749444404791,11.530716,151.36,151.33,12.57313435]
[1749444405000,6.60677806,151.36,151.33,12.57313435]
[1749444406121,11.53147629,151.36,151.33,12.57313435]
[1749444406304,24.10461064,151.36,151.32,12.57313435]
[1749444406511,19.17991241,151.36,151.32,12.57313435]
[1749444406912,4.92540325,151.35,151.32,12.57313435]
[1749444408108,4.92540325,151.35,151.3,6.60906703]
[1749444408325,4.92540325,151.35,151.32,12.57313435]
[1749444410622,4.92540325,151.35,151.33,12.57313435]
[1749444410926,18.64964886,151.36,151.33,12.57313435]
[1749444411419,23.57471869,151.36,151.33,12.57313435]
[1749444415194,18.64964886,151.36,151.33,8.05020047]
[1749444415822,23.57206838,151.36,151.33,8.05020047]
[1749444416547,18.64964886,151.36,151.33,8.05020047]
[1749444418634,18.64964886,151.36,151.32,8.05020047]
[1749444421429,18.64964886,151.36,151.32,14.65843728]
[1749444421810,4.92197595,151.35,151.32,14.65843728]
[1749444422514,4.92197595,151.35,151.32,8.05020047]
[1749444422830,26.69984933,151.36,151.32,8.05020047]
[1749444423032,4.92189114,151.35,151.32,8.05020047]
[1749444423721,4.92163045,151.35,151.32,8.05020047]
[1749444423909,33.30668874,151.36,151.32,8.05020047]
[1749444424107,4.92158718,151.35,151.32,8.05020047]
[1749444424437,26.69984933,151.36,151.32,14.65861555]
[1749444424625,4.92148164,151.35,151.32,14.65861555]
[1749444424935,26.69984933,151.36,151.32,14.65861555]
[1749444425124,4.92179535,151.35,151.32,14.65861555]
[1749444425318,26.69984933,151.36,151.32,14.65861555]
[1749444425519,4.9213788,151.35,151.32,14.65861555]
[1749444425722,26.69984933,151.36,151.32,14.65861555]
[1749444425917,4.92121624,151.35,151.32,14.65861555]
[1749444426118,26.69984933,151.36,151.32,14.65861555]
[1749444426426,4.92010958,151.35,151.32,8.05020047]
[1749444426626,33.30668545,151.36,151.32,8.05020047]
[1749444426828,4.91986115,151.35,151.32,8.05020047]
[1749444427139,33.30668545,151.36,151.32,8.05020047]
[1749444427310,12.96883936,151.35,151.32,8.05020047]
[1749444427510,33.30668545,151.36,151.32,8.05020047]
[1749444427729,4.91829829,151.35,151.32,8.05020047]
[1749444428040,33.30668545,151.36,151.32,8.05020047]
[1749444428246,4.91824352,151.35,151.32,8.05020047]
[1749444428412,33.30668545,151.36,151.32,8.05020047]
[1749444428614,4.91756383,151.35,151.32,8.05020047]
[1749444428924,4.91747834,151.34,151.31,8.05020047]
[1749444429115,8.05020047,151.35,151.31,8.05020047]
[1749444429318,4.91737018,151.34,151.31,8.05020047]
[1749444429632,8.05020047,151.35,151.31,8.05020047]
[1749444429838,4.91680465,151.34,151.31,8.05020047]
[1749444430143,8.05020047,151.34,151.3,8.05020047]
[1749444430758,12.96654829,151.34,151.3,8.05020047]
[1749444430945,4.91634782,151.34,151.31,8.05020047]
[1749444434047,11.52414441,151.34,151.31,8.05020047]
[1749444434935,6.60779659,151.34,151.31,8.05020047]
[1749444435241,11.52170784,151.34,151.31,8.05020047]
[1749444435616,6.60779659,151.34,151.31,8.05020047]
[1749444436651,4.91438327,151.33,151.31,8.05020047]
[1749444437144,19.57290872,151.33,151.29,8.05020047]
[1749444437312,14.65852545,151.33,151.29,8.05020047]
[1749444438722,6.60832498,151.33,151.29,8.05020047]
[1749444438916,12.96368575,151.32,151.28,6.61014143]
[1749444439143,19.57274621,151.31,151.26,8.19236204]
[1749444439348,8.05020047,151.28,151.22,6.61271742]
[1749444439526,8.05020047,151.28,151.23,8.05020047]
[1749444439720,12.96310596,151.28,151.23,8.05020047]
[1749444439921,4.91290549,151.27,151.23,8.05020047]
[1749444440224,4.91290549,151.27,151.22,6.61271742]
[1749444440225,4.91290549,151.27,151.24,8.05020047]
[1749444440431,14.66061434,151.28,151.24,8.05020047]
[1749444440623,19.57351983,151.28,151.24,8.05020047]
[1749444440834,14.66061434,151.28,151.23,8.05020047]
[1749444441021,19.57351983,151.28,151.23,8.05020047]
[1749444441222,14.66061434,151.28,151.23,8.05020047]
[1749444445037,14.66061434,151.28,151.21,14.76511283]
[1749444445245,8.05020047,151.27,151.22,8.05020047]
[1749444445943,8.05020047,151.27,151.23,8.05020047]
[1749444447243,14.66129305,151.27,151.23,8.05020047]
[1749444447551,6.61109258,151.27,151.23,8.05020047]
[1749444448838,14.66129305,151.27,151.23,8.05020047]
[1749444450762,14.66045959,151.28,151.23,8.05020047]
[1749444450942,14.66045959,151.28,151.24,8.05020047]
[1749444452650,8.05020047,151.25,151.17,13.13037715]
[1749444452846,8.05020047,151.23,151.19,8.05020047]
[1749444454261,8.05020047,151.23,151.18,8.05020047]
[1749444454636,6.61288189,151.22,151.18,8.05020047]
[1749444455237,6.61288189,151.22,151.18,12.60220311]
[1749444456148,6.61288189,151.22,151.16,34.15534456]
[1749444456349,6.61288189,151.22,151.18,12.60220311]
[1749444456956,6.61288189,151.22,151.19,12.60220311]
[1749444458672,6.61288189,151.22,151.18,12.60220311]
[1749444459567,29.515085,151.22,151.17,12.60220311]
[1749444460866,6.61375661,151.2,151.17,12.60220311]
[1749444461965,6.61375661,151.2,151.16,1.54]
[1749444462152,6.61375661,151.2,151.17,12.60220311]
[1749444462572,6.61375661,151.2,151.16,1.54]
[1749444462778,6.61375661,151.2,151.17,12.60220311]
[1749444466054,6.61331922,151.21,151.17,12.60220311]
[1749444466574,6.61331922,151.21,151.18,12.60220311]
[1749444469373,6.61331922,151.21,151.17,12.60220311]
[1749444469874,22.90220311,151.22,151.17,12.60220311]
[1749444469875,16.91302266,151.22,151.19,12.60220311]
[1749444470250,16.91302266,151.22,151.2,12.60220311]
[1749444470465,16.91302266,151.22,151.19,12.60220311]
[1749444470974,16.91302266,151.22,151.18,12.60220311]
[1749444474476,29.51522577,151.22,151.18,12.60220311]
[1749444475145,29.51522577,151.22,151.16,1.54]
[1749444475146,29.51522577,151.22,151.17,12.60220311]
[1749444475351,24.97935471,151.22,151.17,8.06633205]
[1749444478760,16.91302266,151.22,151.17,8.06633205]
[1749444478962,24.97935471,151.22,151.18,8.06633205]
[1749444479369,16.91302266,151.22,151.18,8.06633205]
[1749444479986,16.91302266,151.22,151.19,8.06633205]
[1749444480587,16.91302266,151.22,151.2,8.06633205]
[1749444480782,16.91302266,151.22,151.19,8.06633205]
[1749444482254,6.61302266,151.22,151.19,8.06633205]
[1749444482459,6.61302266,151.22,151.18,8.06633205]
[1749444483682,6.61302266,151.22,151.17,0.14216157]
[1749444483683,6.61302266,151.22,151.19,8.06633205]
[1749444485386,6.61244462,151.23,151.19,8.06633205]
[1749444488669,6.61244462,151.23,151.17,6.75720357]
[1749444488670,6.61244462,151.23,151.2,8.06633205]
[1749444491471,11.50082059,151.23,151.2,8.06633205]
[1749444493570,11.50082059,151.23,151.19,8.06633205]
[1749444493878,19.56715264,151.23,151.19,8.06633205]
[1749444494191,12.95470802,151.22,151.16,1.54]
[1749444494387,4.88837597,151.21,151.17,8.06633205]
[1749444495098,4.88837597,151.2,151.17,8.06633205]
[1749444495284,4.88837597,151.21,151.17,8.06633205]
[1749444495595,8.06633205,151.22,151.18,8.06633205]
[1749444495596,4.88837597,151.2,151.18,8.06633205]
[1749444495797,11.50212078,151.21,151.18,8.06633205]
[1749444495998,6.61374481,151.21,151.18,8.06633205]
[1749444496510,4.90850637,151.2,151.18,8.06633205]
[1749444497403,6.61374481,151.21,151.18,8.06633205]
[1749444497604,4.91158077,151.2,151.18,8.06633205]
[1749444497779,6.61374481,151.21,151.18,8.06633205]
[1749444497979,4.91177326,151.2,151.18,8.06633205]
[1749444498179,6.61374481,151.21,151.18,8.06633205]
[1749444498401,4.91171583,151.2,151.18,8.06633205]
[1749444498570,6.61374481,151.21,151.18,8.06633205]
[1749444498774,4.91179274,151.2,151.18,8.06633205]
[1749444498994,6.61374481,151.21,151.18,8.06633205]
[1749444499252,4.91167424,151.2,151.18,8.06633205]
[1749444499392,6.61374481,151.21,151.18,8.06633205]
[1749444499702,4.91191769,151.2,151.18,8.06633205]
[1749444499905,6.61374481,151.21,151.18,8.06633205]
[1749444500074,4.91194144,151.2,151.18,8.06633205]
[1749444500274,6.61374481,151.21,151.18,8.06633205]
[1749444500479,4.9118852,151.2,151.18,8.06633205]
[1749444500687,6.61374481,151.21,151.18,8.06633205]
[1749444500892,6.61374481,151.21,151.14,6.75836003]
[1749444500893,4.91192402,151.2,151.15,0.14216157]
[1749444501101,4.91192402,151.19,151.17,8.06633205]
[1749444501303,4.91192402,151.2,151.17,8.06633205]
[1749444501505,4.91192402,151.19,151.17,8.06633205]
[1749444501687,4.91192402,151.2,151.17,8.06633205]
[1749444501898,4.91192402,151.19,151.17,8.06633205]
[1749444502101,11.52611696,151.2,151.17,8.06633205]
[1749444502417,4.91192402,151.19,151.15,0.14216157]
[1749444502583,4.91186374,151.19,151.17,8.06633205]
[1749444503110,6.61419294,151.2,151.17,8.06633205]
[1749444503307,11.52624197,151.19,151.17,8.06633205]
[1749444503609,6.61435148,151.19,151.17,8.06633205]
[1749444503812,6.61435148,151.19,151.16,8.06633205]
[1749444504115,6.61435148,151.19,151.15,8.06633205]
[1749444504116,4.91119494,151.18,151.15,8.06633205]
[1749444504294,4.91119494,151.17,151.15,8.06633205]
[1749444504484,12.97752699,151.18,151.14,8.06633205]
[1749444504691,4.9097127,151.17,151.14,8.06633205]
[1749444504887,8.06633205,151.18,151.14,8.06633205]
[1749444505085,4.90926572,151.17,151.14,8.06633205]
[1749444505282,6.61506912,151.17,151.14,8.06633205]
[1749444505487,11.52290664,151.17,151.14,8.06633205]
[1749444505899,6.61506912,151.17,151.14,8.06633205]
[1749444506092,11.52273051,151.17,151.14,8.06633205]
[1749444506504,4.90766139,151.17,151.15,8.06633205]
[1749444506727,6.61474381,151.18,151.15,8.06633205]
[1749444507109,6.61435849,151.19,151.16,8.06633205]
[1749444507310,4.90950408,151.18,151.16,8.06633205]
[1749444507694,11.52423897,151.18,151.16,8.06633205]
[1749444507899,6.61473489,151.18,151.12,8.25330281]
[1749444508120,31.62513191,151.17,151.12,1.6362]
[1749444508321,4.909151,151.16,151.13,8.06633205]
[1749444509123,6.61594442,151.15,151.13,8.06633205]
[1749444510317,6.61550674,151.16,151.13,8.06633205]
[1749444510524,40.47404446,151.17,151.14,8.06633205]
[1749444510708,35.56489346,151.17,151.14,8.06633205]
[1749444510908,40.47404446,151.17,151.14,8.06633205]
[1749444511108,35.56489346,151.17,151.14,8.06633205]
[1749444511945,10.3,151.17,151.15,8.06633205]
[1749444512222,16.9150817,151.17,151.15,8.06633205]
[1749444512394,10.3,151.17,151.15,8.06633205]
[1749444514523,10.3,151.17,151.16,8.06633205]
[1749444515598,10.3,151.17,151.15,8.06633205]
[1749444526728,16.91512014,151.17,151.15,8.06633205]
[1749444527406,24.98145219,151.17,151.13,8.06633205]
[1749444528312,18.64964886,151.16,151.12,8.06633205]
[1749444528514,6.61594442,151.15,151.13,8.06633205]
[1749444537241,6.61594442,151.15,151.1,6.61808889]
[1749444537418,6.61594442,151.15,151.13,8.06633205]
[1749444537615,26.71598091,151.14,151.08,1.6114]
[1749444537823,8.06633205,151.13,151.09,8.06633205]
[1749444538032,8.06633205,151.12,151.08,8.06633205]
[1749444538243,26.71598091,151.12,151.08,8.06633205]
[1749444539245,6.61769571,151.11,151.08,8.06633205]
[1749444543447,6.61769571,151.11,151.04,73.95547049]
[1749444543448,6.61769571,151.11,151.07,8.06633205]
[1749444544324,14.68402776,151.11,151.07,8.06633205]
[1749444549169,14.68402776,151.11,151.04,2.4085934]
[1749444549465,18.64964886,151.1,151.07,8.06633205]
[1749444550960,6.61769571,151.11,151.08,8.06633205]
[1749444551569,16.53978883,151.16,151.1,8.06633205]
[1749444551781,18.64964886,151.14,151.11,8.06633205]
[1749444552662,25.2663024,151.14,151.11,8.06633205]
[1749444553657,16.91602871,151.15,151.12,8.06633205]
[1749444557375,16.91602871,151.15,151.13,8.06633205]
[1749444558575,10.3,151.15,151.14,8.06633205]
[1749444560480,43.63192533,151.15,151.09,27.5415]
[1749444560667,43.63192533,151.15,151.11,8.06633205]
[1749444561378,35.56559328,151.15,151.11,8.06633205]
[1749444561557,35.56559328,151.15,151.12,8.06633205]
[1749444562578,18.64964886,151.14,151.1,8.06633205]
[1749444562874,66.89598091,151.14,151.09,8.06633205]
[1749444563456,8.06633205,151.13,151.09,8.06633205]
[1749444564074,66.89598091,151.14,151.09,8.06633205]
[1749444564272,66.89598091,151.14,151.07,0.14216157]
[1749444564273,66.89598091,151.14,151.1,8.06633205]
[1749444564781,6.61681995,151.13,151.11,8.06633205]
[1749444566679,6.61681995,151.13,151.07,6.76147235]
[1749444566883,6.61681995,151.13,151.1,8.06633205]
[1749444569191,6.61681995,151.13,151.05,54.88538472]
[1749444569484,14.683152,151.13,151.09,8.06633205]
[1749444569685,31.22520189,151.13,151.09,8.06633205]
[1749444570594,23.15886984,151.13,151.09,8.06633205]
[1749444572390,18.64964886,151.12,151.05,8.1052]
[1749444572565,6.61769571,151.11,151.08,8.06633205]
[1749444573287,18.64964886,151.1,151.05,1.5654]
[1749444573495,26.71598091,151.1,151.06,8.06633205]
[1749444573792,37.01598091,151.1,151.06,8.06633205]
[1749444574591,6.61857171,151.09,151.06,8.06633205]
[1749444575473,6.61857171,151.09,151.07,8.06633205]
[1749444592192,6.61857171,151.09,151.06,8.06633205]
[1749444602329,6.61857171,151.09,151.05,8.06633205]
[1749444602631,23.16500099,151.09,151.05,8.06633205]
[1749444602920,71.41133304,151.09,151.05,8.06633205]
[1749444603600,63.34500099,151.09,151.05,8.06633205]
[1749444608128,4.89691764,151.08,151.04,8.97362545]
[1749444609219,12.96324969,151.08,151.04,8.97362545]
[1749444609927,6.61944793,151.07,151.04,8.97362545]
[1749444612407,11.51636557,151.07,151.04,8.97362545]
[1749444612925,6.61944793,151.07,151.04,8.97362545]
[1749444613505,11.51636557,151.07,151.04,0.9072934]
[1749444613707,19.58269762,151.07,151.04,0.9072934]
[1749444614015,31.61289855,151.06,151.04,0.9072934]
[1749444615937,30.16689089,151.05,151.04,0.9072934]
[1749444616140,25.26997325,151.05,151.04,0.9072934]
[1749444616633,30.16689089,151.05,151.04,0.9072934]
[1749444617234,25.26997325,151.05,151.04,0.9072934]
[1749444617434,30.16689089,151.05,151.04,0.9072934]
[1749444617745,33.3363053,151.05,151.04,0.9072934]
[1749444618110,43.6363053,151.05,151.04,0.9072934]
[1749444618726,48.53322294,151.05,151.04,0.9072934]
[1749444618935,83.8163053,151.05,151.04,0.9072934]
[1749444619118,88.71322294,151.05,151.04,0.9072934]
[1749444620940,88.99754608,151.05,151.04,0.9072934]
[1749444621333,114.99754608,151.05,151.04,0.9072934]
[1749444621549,120.32752462,151.05,151.04,0.9072934]
[1749444622136,94.32752462,151.05,151.04,0.9072934]
[1749444622314,140.71572111,151.05,151.04,0.9072934]
[1749444622851,18.64964886,151.01,150.98,2.74302556]
[1749444623025,8.06633205,150.99,150.98,2.74302556]
[1749444623255,14.68928721,150.99,150.98,2.74302556]
[1749444625260,6.62295516,150.99,150.98,2.74302556]
[1749444625441,14.68928721,150.99,150.98,2.74302556]
[1749444626554,10.3,151.0,150.98,10.80935761]
[1749444626751,10.3,151.0,150.99,8.06633205]
[1749444626961,6.62123304,151.03,150.99,8.06633205]
[1749444627177,6.62123304,151.03,151.0,8.06633205]
[1749444627471,25.2708819,151.03,151.0,8.06633205]
[1749444629183,18.64964886,151.03,151.0,8.06633205]
[1749444629472,57.10092655,151.04,151.01,12.63324713]
[1749444632182,16.92092655,151.04,151.01,12.63324713]
[1749444632355,57.10092655,151.04,151.01,12.63324713]
[1749444632551,50.48,151.04,151.01,12.63324713]
[1749444633090,50.48,151.04,151.02,12.63324713]
[1749444633250,10.3,151.04,151.03,12.63324713]
[1749444633679,10.3,151.04,151.02,12.63324713]
[1749444635488,10.3,151.04,151.03,12.63324713]
[1749444635694,18.64964886,151.03,150.99,1.5348]
[1749444635880,18.64964886,151.03,151.0,12.63324713]
[1749444636561,25.27120435,151.03,151.0,12.63324713]
[1749444636772,16.92084616,151.04,151.02,12.63324713]
[1749444636973,75.75027947,151.05,151.03,12.63324713]
[1749444637162,75.75027947,151.05,151.04,12.63324713]
[1749444637883,10.3,151.05,151.04,12.63324713]
[1749444639879,16.92036592,151.05,151.01,1.6584]
[1749444640084,16.92036592,151.05,151.03,12.63324713]
[1749444641179,16.92036592,151.05,151.04,12.63324713]
[1749444641380,10.3,151.05,151.04,12.63324713]
[1749444643484,10.3,151.05,151.02,12.63324713]
[1749444643963,16.92042863,151.05,151.02,12.63324713]
[1749444645780,16.92042863,151.05,151.01,12.63324713]
[1749444648973,16.92042863,151.05,151.02,12.63324713]
[1749444651395,16.92042863,151.05,151.02,8.08324847]
[1749444656875,16.92042863,151.05,151.03,8.08324847]
[1749444660895,6.62042863,151.05,151.03,8.08324847]
[1749444662108,6.62042863,151.05,151.01,8.08324847]
[1749444662279,6.62042863,151.05,151.02,8.08324847]
[1749444662586,6.62042863,151.05,151.03,8.08324847]
[1749444665489,18.64964886,151.06,151.04,8.08324847]
[1749444665490,6.61995719,151.06,151.04,8.08324847]